[Event "Early-Titled-Tuesday-Blitz-January-30-2024"]
[Site "Chess.com"]
[Date "2024.01.30"]
[Round "6"]
[White "Grischuk"]
[Black "MikaelyanArman"]
[Result "0-1"]
[WhiteElo "3068"]
[BlackElo "2853"]
[TimeControl "180+1"]
[EndTime "9:09:34 PST"]
[Termination "MikaelyanArman won on time"]

1. d4 {[%clk 0:03:00.9]} 1... d5 {[%clk 0:03:00]} 2. Nf3 {[%clk 0:03:00.4]} 2...
Nf6 {[%clk 0:03:00]} 3. Bg5 {[%clk 0:03:00.3]} 3... Ne4 {[%clk 0:02:55.3]} 4.
Bh4 {[%clk 0:02:59.7]} 4... Bf5 {[%clk 0:02:48.5]} 5. e3 {[%clk 0:02:56.5]} 5...
Nd7 {[%clk 0:02:47.9]} 6. c4 {[%clk 0:02:54.7]} 6... c6 {[%clk 0:02:42]} 7. Nbd2
{[%clk 0:02:41.5]} 7... Qb6 {[%clk 0:02:31.9]} 8. Qc1 {[%clk 0:02:41.2]} 8... e6
{[%clk 0:02:29.2]} 9. a3 {[%clk 0:02:34.8]} 9... h5 {[%clk 0:02:13.2]} 10. b4
{[%clk 0:02:20.6]} 10... f6 {[%clk 0:01:40.1]} 11. c5 {[%clk 0:01:48.3]} 11...
Qd8 {[%clk 0:01:29.8]} 12. Nxe4 {[%clk 0:01:22.6]} 12... dxe4 {[%clk 0:01:30.7]}
13. Nd2 {[%clk 0:01:23]} 13... g5 {[%clk 0:01:27.8]} 14. Bg3 {[%clk 0:01:23.6]}
14... h4 {[%clk 0:01:16.8]} 15. Bd6 {[%clk 0:01:22.4]} 15... Bxd6 {[%clk
0:01:17.3]} 16. cxd6 {[%clk 0:01:23.3]} 16... Nb6 {[%clk 0:01:17.9]} 17. Qc2
{[%clk 0:01:22.5]} 17... Qxd6 {[%clk 0:01:05.5]} 18. Nxe4 {[%clk 0:01:22.6]}
18... Qe7 {[%clk 0:01:01.5]} 19. Bd3 {[%clk 0:01:19.6]} 19... h3 {[%clk
0:00:55.8]} 20. g3 {[%clk 0:01:16.6]} 20... Nd5 {[%clk 0:00:49.2]} 21. Nc5
{[%clk 0:01:10.4]} 21... Bxd3 {[%clk 0:00:47.3]} 22. Nxd3 {[%clk 0:01:11]} 22...
Qh7 {[%clk 0:00:36.3]} 23. Rc1 {[%clk 0:00:21.3]} 23... Qe4 {[%clk 0:00:30.2]}
24. Rg1 {[%clk 0:00:21.9]} 24... a5 {[%clk 0:00:14.9]} 25. bxa5 {[%clk
0:00:20.6]} 25... Rxa5 {[%clk 0:00:13.2]} 26. Nc5 {[%clk 0:00:20.7]} 26... Qxc2
{[%clk 0:00:11.8]} 27. Rxc2 {[%clk 0:00:21.6]} 27... Rxa3 {[%clk 0:00:09]} 28.
Kd2 {[%clk 0:00:22]} 28... b6 {[%clk 0:00:05.6]} 29. Ne4 {[%clk 0:00:06.6]}
29... Kd7 {[%clk 0:00:05.1]} 30. Rgc1 {[%clk 0:00:06.5]} 30... Rc8 {[%clk
0:00:03.9]} 31. g4 {[%clk 0:00:07]} 31... Nb4 {[%clk 0:00:04.2]} 32. Rc4 {[%clk
0:00:03.5]} 32... Ra2+ {[%clk 0:00:03.7]} 33. Kc3 {[%clk 0:00:03.3]} 33... Nd5+
{[%clk 0:00:04.1]} 34. Kd3 {[%clk 0:00:03.9]} 34... Ra3+ {[%clk 0:00:04.1]} 35.
Kd2 {[%clk 0:00:03.8]} 35... Ra2+ {[%clk 0:00:04.5]} 36. Kd3 {[%clk 0:00:03]}
36... Rc7 {[%clk 0:00:04.8]} 37. Nd2 {[%clk 0:00:01.2]} 37... Ra3+ {[%clk
0:00:04.6]} 38. Ke2 {[%clk 0:00:01.6]} 38... b5 {[%clk 0:00:05.3]} 39. Rc5
{[%clk 0:00:01.7]} 39... b4 {[%clk 0:00:06]} 40. Ne4 {[%clk 0:00:01.6]} 40...
Ra2+ {[%clk 0:00:05.8]} 41. R5c2 {[%clk 0:00:01.2]} 41... b3 {[%clk 0:00:05.6]}
42. Rd2 {[%clk 0:00:01.7]} 42... b2 {[%clk 0:00:05.2]} 43. Rb1 {[%clk
0:00:01.7]} 43... Nb4 {[%clk 0:00:04.5]} 44. Nc5+ {[%clk 0:00:01.5]} 44... Kd6
{[%clk 0:00:04.7]} 45. Rdxb2 {[%clk 0:00:02.4]} 45... Rxb2+ {[%clk 0:00:04.6]}
46. Rxb2 {[%clk 0:00:03.3]} 46... Nd5 {[%clk 0:00:05.2]} 47. Ne4+ {[%clk
0:00:03.2]} 47... Ke7 {[%clk 0:00:05.4]} 48. Rc2 {[%clk 0:00:03.6]} 48... Kd7
{[%clk 0:00:05]} 49. Kf3 {[%clk 0:00:03.7]} 49... Ra7 {[%clk 0:00:04.6]} 50. Kg3
{[%clk 0:00:03.6]} 50... Ra1 {[%clk 0:00:04.4]} 51. Kxh3 {[%clk 0:00:03.8]}
51... Rg1 {[%clk 0:00:04.4]} 52. Ng3 {[%clk 0:00:03.5]} 52... Re1 {[%clk
0:00:03.6]} 53. Kg2 {[%clk 0:00:03.1]} 53... Rxe3 {[%clk 0:00:03.4]} 54. Ra2
{[%clk 0:00:02.1]} 54... Rb3 {[%clk 0:00:02.9]} 55. Ne2 {[%clk 0:00:01.3]} 55...
Rb7 {[%clk 0:00:02.6]} 56. f3 {[%clk 0:00:01.7]} 56... Nb4 {[%clk 0:00:02.5]}
0-1

[Event "Early-Titled-Tuesday-Blitz-January-30-2024"]
[Site "Chess.com"]
[Date "2024.01.30"]
[Round "6"]
[White "MFatigue"]
[Black "mary-sanna"]
[Result "1-0"]
[WhiteElo "2466"]
[BlackElo "2198"]
[TimeControl "180+1"]
[EndTime "9:09:36 PST"]
[Termination "MFatigue won by checkmate"]

1. e4 {[%clk 0:03:00.9]} 1... c5 {[%clk 0:03:00]} 2. a3 {[%clk 0:03:01]} 2... d5
{[%clk 0:02:58.9]} 3. exd5 {[%clk 0:03:00.9]} 3... Qxd5 {[%clk 0:02:59]} 4. Nc3
{[%clk 0:03:01.4]} 4... Qd6 {[%clk 0:02:58.3]} 5. Nf3 {[%clk 0:03:01.8]} 5...
Nf6 {[%clk 0:02:58.1]} 6. d4 {[%clk 0:03:02.2]} 6... cxd4 {[%clk 0:02:50.5]} 7.
Qxd4 {[%clk 0:03:03.1]} 7... Qxd4 {[%clk 0:02:46.8]} 8. Nxd4 {[%clk 0:03:04]}
8... a6 {[%clk 0:02:41.5]} 9. Na4 {[%clk 0:03:04]} 9... Nbd7 {[%clk 0:02:39.7]}
10. c4 {[%clk 0:03:04.6]} 10... e5 {[%clk 0:02:33]} 11. Nc2 {[%clk 0:03:05]}
11... Be7 {[%clk 0:02:29.8]} 12. Be3 {[%clk 0:03:05.5]} 12... O-O {[%clk
0:02:29.3]} 13. Be2 {[%clk 0:03:06.2]} 13... b6 {[%clk 0:02:01.6]} 14. O-O
{[%clk 0:02:31.7]} 14... Rb8 {[%clk 0:01:59.4]} 15. b4 {[%clk 0:02:24.2]} 15...
Bb7 {[%clk 0:01:30.9]} 16. Nxb6 {[%clk 0:02:00.9]} 16... Nxb6 {[%clk 0:01:27.4]}
17. Bxb6 {[%clk 0:02:01.8]} 17... Be4 {[%clk 0:01:27.5]} 18. Bc7 {[%clk
0:01:51.8]} 18... Rbc8 {[%clk 0:01:13.6]} 19. Bxe5 {[%clk 0:01:48.1]} 19... Bxc2
{[%clk 0:01:13.5]} 20. Rfc1 {[%clk 0:01:47.8]} 20... Bf5 {[%clk 0:01:10.7]} 21.
c5 {[%clk 0:01:34.9]} 21... a5 {[%clk 0:01:10.2]} 22. Ba6 {[%clk 0:01:35.2]}
22... Rcd8 {[%clk 0:00:45]} 23. Bc7 {[%clk 0:01:23.3]} 23... Ra8 {[%clk
0:00:41.8]} 24. b5 {[%clk 0:01:18.4]} 24... Bc8 {[%clk 0:00:25.7]} 25. Bxc8
{[%clk 0:01:03.1]} 25... Rfxc8 {[%clk 0:00:26.6]} 26. b6 {[%clk 0:01:03.6]}
26... Nd5 {[%clk 0:00:10.1]} 27. Bg3 {[%clk 0:00:33]} 27... Rxc5 {[%clk
0:00:07.6]} 28. Rxc5 {[%clk 0:00:27.2]} 28... Bxc5 {[%clk 0:00:06.6]} 29. b7
{[%clk 0:00:27.6]} 29... Re8 {[%clk 0:00:04.7]} 30. b8=Q {[%clk 0:00:27.4]}
30... Rxb8 {[%clk 0:00:04.9]} 31. Bxb8 {[%clk 0:00:28.3]} 31... Kf8 {[%clk
0:00:04]} 32. a4 {[%clk 0:00:22.7]} 32... Bb4 {[%clk 0:00:03.9]} 33. Ba7 {[%clk
0:00:16.5]} 33... Nc3 {[%clk 0:00:04]} 34. Kf1 {[%clk 0:00:14.9]} 34... Ke7
{[%clk 0:00:04.2]} 35. Bd4 {[%clk 0:00:15.5]} 35... f6 {[%clk 0:00:03.2]} 36.
Bxc3 {[%clk 0:00:15.4]} 36... Bxc3 {[%clk 0:00:03.5]} 37. Rd1 {[%clk 0:00:15.1]}
37... Bb4 {[%clk 0:00:04.1]} 38. Ke2 {[%clk 0:00:15.5]} 38... Ke6 {[%clk
0:00:04.5]} 39. Kf3 {[%clk 0:00:16.1]} 39... Kf5 {[%clk 0:00:04.9]} 40. Rd5+
{[%clk 0:00:15.8]} 40... Ke6 {[%clk 0:00:05]} 41. Ke4 {[%clk 0:00:16.5]} 41...
g6 {[%clk 0:00:05.3]} 42. Rb5 {[%clk 0:00:16.8]} 42... h5 {[%clk 0:00:05.1]} 43.
h4 {[%clk 0:00:16.4]} 43... Kd6 {[%clk 0:00:04.6]} 44. g3 {[%clk 0:00:05.7]}
44... Kc6 {[%clk 0:00:04.3]} 45. f3 {[%clk 0:00:05.2]} 45... Kd6 {[%clk
0:00:04.5]} 46. g4 {[%clk 0:00:05.3]} 46... Kc6 {[%clk 0:00:04]} 47. gxh5 {[%clk
0:00:05.5]} 47... gxh5 {[%clk 0:00:04.9]} 48. Rxh5 {[%clk 0:00:05.9]} 48... Be1
{[%clk 0:00:04.5]} 49. Kf4 {[%clk 0:00:05.3]} 49... Kd6 {[%clk 0:00:04.3]} 50.
Kg4 {[%clk 0:00:05.5]} 50... Ke6 {[%clk 0:00:04.5]} 51. Rb5 {[%clk 0:00:05.8]}
51... Bf2 {[%clk 0:00:03.1]} 52. h5 {[%clk 0:00:06.2]} 52... Be1 {[%clk
0:00:03.9]} 53. h6 {[%clk 0:00:06]} 53... Kf7 {[%clk 0:00:04.6]} 54. Kf5 {[%clk
0:00:06.9]} 54... Bd2 {[%clk 0:00:03.8]} 55. Rb7+ {[%clk 0:00:06.7]} 55... Kg8
{[%clk 0:00:03.9]} 56. Kg6 {[%clk 0:00:05.6]} 56... Kf8 {[%clk 0:00:03.1]} 57.
h7 {[%clk 0:00:05.6]} 57... Bh6 {[%clk 0:00:01.6]} 58. h8=Q# {[%clk 0:00:05.2]}
1-0

[Event "Early-Titled-Tuesday-Blitz-January-30-2024"]
[Site "Chess.com"]
[Date "2024.01.30"]
[Round "6"]
[White "Mikhail_Golubev"]
[Black "secretsuperstar7"]
[Result "1/2-1/2"]
[WhiteElo "2680"]
[BlackElo "2524"]
[TimeControl "180+1"]
[EndTime "9:09:39 PST"]
[Termination "Game drawn by repetition"]

1. e4 {[%clk 0:03:00.9]} 1... c5 {[%clk 0:02:56.8]} 2. Nf3 {[%clk 0:03:00.7]}
2... Nc6 {[%clk 0:02:54.3]} 3. Nc3 {[%clk 0:02:59.9]} 3... e5 {[%clk 0:02:46.5]}
4. Bc4 {[%clk 0:02:58.5]} 4... d6 {[%clk 0:02:45.8]} 5. d3 {[%clk 0:02:58.1]}
5... Be7 {[%clk 0:02:46]} 6. Nd2 {[%clk 0:02:56.4]} 6... Nf6 {[%clk 0:02:44.7]}
7. Nf1 {[%clk 0:02:56.8]} 7... Bg4 {[%clk 0:02:42.9]} 8. f3 {[%clk 0:02:56.6]}
8... Be6 {[%clk 0:02:43]} 9. Ne3 {[%clk 0:02:57.2]} 9... O-O {[%clk 0:02:41.4]}
10. O-O {[%clk 0:02:57.7]} 10... a6 {[%clk 0:02:39.5]} 11. a4 {[%clk 0:02:57.2]}
11... Nd7 {[%clk 0:02:36]} 12. Ned5 {[%clk 0:02:49.1]} 12... Rb8 {[%clk
0:02:23.8]} 13. Bd2 {[%clk 0:02:31]} 13... Nd4 {[%clk 0:02:22.1]} 14. Nxe7+
{[%clk 0:02:17.7]} 14... Qxe7 {[%clk 0:02:21.5]} 15. Nd5 {[%clk 0:02:18.2]}
15... Qd8 {[%clk 0:02:14.3]} 16. a5 {[%clk 0:01:58.1]} 16... f5 {[%clk
0:01:57.2]} 17. c3 {[%clk 0:01:41.8]} 17... Nc6 {[%clk 0:01:52.6]} 18. exf5
{[%clk 0:01:28]} 18... Bxd5 {[%clk 0:01:45.7]} 19. Bxd5+ {[%clk 0:01:27.5]}
19... Kh8 {[%clk 0:01:46]} 20. Be6 {[%clk 0:01:23.8]} 20... Ne7 {[%clk
0:01:44.8]} 21. g4 {[%clk 0:01:07.9]} 21... Nf6 {[%clk 0:01:37.2]} 22. Bg5
{[%clk 0:01:01.3]} 22... b6 {[%clk 0:01:30.1]} 23. axb6 {[%clk 0:00:58.4]} 23...
Qxb6 {[%clk 0:01:31]} 24. Ra2 {[%clk 0:00:54]} 24... c4+ {[%clk 0:01:29.1]} 25.
Kh1 {[%clk 0:00:53.8]} 25... cxd3 {[%clk 0:01:06]} 26. Qxd3 {[%clk 0:00:54.7]}
26... a5 {[%clk 0:00:52.8]} 27. Be3 {[%clk 0:00:47.6]} 27... Qc6 {[%clk
0:00:51.8]} 28. Qc4 {[%clk 0:00:32.8]} 28... Qb7 {[%clk 0:00:45.4]} 29. Qa4
{[%clk 0:00:29.2]} 29... Ned5 {[%clk 0:00:35.6]} 30. Bg5 {[%clk 0:00:24.3]}
30... Nb6 {[%clk 0:00:27.7]} 31. Qb5 {[%clk 0:00:16.1]} 31... Nxg4 {[%clk
0:00:25.5]} 32. b3 {[%clk 0:00:15.7]} 32... h6 {[%clk 0:00:16.7]} 33. Bc1 {[%clk
0:00:12.3]} 33... Rbe8 {[%clk 0:00:09.7]} 34. Rg2 {[%clk 0:00:11.9]} 34... Nf6
{[%clk 0:00:07.6]} 35. Qe2 {[%clk 0:00:10.2]} 35... e4 {[%clk 0:00:06.5]} 36.
fxe4 {[%clk 0:00:09.5]} 36... Nxe4 {[%clk 0:00:06]} 37. Qf3 {[%clk 0:00:08.7]}
37... d5 {[%clk 0:00:05.5]} 38. Rfg1 {[%clk 0:00:07.8]} 38... Rxe6 {[%clk
0:00:04.5]} 39. Rxg7 {[%clk 0:00:06.5]} 39... Qxg7 {[%clk 0:00:04.6]} 40. Rxg7
{[%clk 0:00:06.2]} 40... Kxg7 {[%clk 0:00:05.5]} 41. Qg2+ {[%clk 0:00:05.1]}
41... Kh7 {[%clk 0:00:04]} 42. fxe6 {[%clk 0:00:05.4]} 42... Nf2+ {[%clk
0:00:03.6]} 43. Kg1 {[%clk 0:00:04.1]} 43... Rg8 {[%clk 0:00:03.4]} 44. Kxf2
{[%clk 0:00:03.7]} 44... Rxg2+ {[%clk 0:00:03.6]} 45. Kxg2 {[%clk 0:00:04.6]}
45... Kg7 {[%clk 0:00:04]} 46. Be3 {[%clk 0:00:04.1]} 46... Nc8 {[%clk
0:00:03.7]} 47. Bc5 {[%clk 0:00:03.8]} 47... Kf6 {[%clk 0:00:03.5]} 48. e7
{[%clk 0:00:02.6]} 48... Nxe7 {[%clk 0:00:03.4]} 49. Bxe7+ {[%clk 0:00:02.8]}
49... Kxe7 {[%clk 0:00:04.3]} 50. Kf3 {[%clk 0:00:03.1]} 50... Ke6 {[%clk
0:00:03.7]} 51. Ke3 {[%clk 0:00:03.1]} 51... Ke5 {[%clk 0:00:03.3]} 52. Kd3
{[%clk 0:00:03.6]} 52... h5 {[%clk 0:00:01.5]} 53. Ke3 {[%clk 0:00:03.5]} 53...
h4 {[%clk 0:00:01.6]} 54. h3 {[%clk 0:00:03.9]} 54... Kd6 {[%clk 0:00:01.1]} 55.
Kd4 {[%clk 0:00:03.9]} 55... Kc6 {[%clk 0:00:01.3]} 56. Kd3 {[%clk 0:00:03.7]}
56... Kc5 {[%clk 0:00:01.5]} 57. Ke3 {[%clk 0:00:03.6]} 57... Kb5 {[%clk
0:00:01.8]} 58. Kd4 {[%clk 0:00:03.6]} 58... Kc6 {[%clk 0:00:02.1]} 59. Kd3
{[%clk 0:00:03.4]} 59... Kc5 {[%clk 0:00:02.5]} 60. Ke3 {[%clk 0:00:03.5]} 60...
Kb5 {[%clk 0:00:03]} 61. Kd4 {[%clk 0:00:03.6]} 61... Kc6 {[%clk 0:00:03.4]}
1/2-1/2

[Event "Early-Titled-Tuesday-Blitz-January-30-2024"]
[Site "Chess.com"]
[Date "2024.01.30"]
[Round "6"]
[White "Preobrazhenska_D2011"]
[Black "jaskol95"]
[Result "0-1"]
[WhiteElo "2375"]
[BlackElo "2540"]
[TimeControl "180+1"]
[EndTime "9:09:42 PST"]
[Termination "jaskol95 won by checkmate"]

1. e4 {[%clk 0:02:59.3]} 1... d6 {[%clk 0:03:00.4]} 2. d4 {[%clk 0:02:58.3]}
2... Nf6 {[%clk 0:03:00.3]} 3. Nc3 {[%clk 0:02:57.8]} 3... Nbd7 {[%clk
0:03:00.4]} 4. Nf3 {[%clk 0:02:53.6]} 4... e5 {[%clk 0:03:00.6]} 5. Bc4 {[%clk
0:02:47.3]} 5... Be7 {[%clk 0:03:01]} 6. O-O {[%clk 0:02:46.9]} 6... c6 {[%clk
0:03:00.4]} 7. Bb3 {[%clk 0:02:43.8]} 7... Qc7 {[%clk 0:02:52.7]} 8. Re1 {[%clk
0:02:35.6]} 8... h6 {[%clk 0:02:43]} 9. Nh4 {[%clk 0:02:19.3]} 9... g6 {[%clk
0:02:12.2]} 10. Nf3 {[%clk 0:02:10.3]} 10... Nf8 {[%clk 0:02:00.6]} 11. h3
{[%clk 0:01:47.2]} 11... g5 {[%clk 0:01:59.6]} 12. Nh2 {[%clk 0:01:29.4]} 12...
Ng6 {[%clk 0:01:56.2]} 13. Be3 {[%clk 0:01:15.5]} 13... Nf4 {[%clk 0:01:47.8]}
14. Qf3 {[%clk 0:00:44.1]} 14... Be6 {[%clk 0:01:23.7]} 15. d5 {[%clk
0:00:37.5]} 15... Bd7 {[%clk 0:01:19.4]} 16. Bxf4 {[%clk 0:00:36.2]} 16... gxf4
{[%clk 0:01:19.1]} 17. Rad1 {[%clk 0:00:30.5]} 17... c5 {[%clk 0:01:16.1]} 18.
Qe2 {[%clk 0:00:24.1]} 18... a6 {[%clk 0:01:11.2]} 19. a4 {[%clk 0:00:23.5]}
19... O-O-O {[%clk 0:01:09.9]} 20. Bc4 {[%clk 0:00:22.1]} 20... Rhg8 {[%clk
0:01:00.7]} 21. Kh1 {[%clk 0:00:22.3]} 21... Qa5 {[%clk 0:00:56.2]} 22. Rb1
{[%clk 0:00:19]} 22... Kb8 {[%clk 0:00:50.3]} 23. Qd3 {[%clk 0:00:15.8]} 23...
Rc8 {[%clk 0:00:48.6]} 24. Ra1 {[%clk 0:00:11.7]} 24... Nh5 {[%clk 0:00:48]} 25.
Ne2 {[%clk 0:00:10.4]} 25... Rg6 {[%clk 0:00:40.6]} 26. c3 {[%clk 0:00:10.5]}
26... Rcg8 {[%clk 0:00:39.9]} 27. Rg1 {[%clk 0:00:10.6]} 27... Bh4 {[%clk
0:00:33.3]} 28. b4 {[%clk 0:00:10.4]} 28... Qc7 {[%clk 0:00:32.9]} 29. Qf3
{[%clk 0:00:08.2]} 29... Nf6 {[%clk 0:00:22.9]} 30. bxc5 {[%clk 0:00:06.2]}
30... Qxc5 {[%clk 0:00:23]} 31. Bd3 {[%clk 0:00:05.8]} 31... Bxf2 {[%clk
0:00:21.7]} 32. Rab1 {[%clk 0:00:03.6]} 32... Bxg1 {[%clk 0:00:19.3]} 33. Rxg1
{[%clk 0:00:04.5]} 33... Qe3 {[%clk 0:00:15.7]} 34. Qxe3 {[%clk 0:00:04.3]}
34... fxe3 {[%clk 0:00:16.6]} 35. Nf3 {[%clk 0:00:04.3]} 35... Nh5 {[%clk
0:00:16]} 36. Nh4 {[%clk 0:00:04.5]} 36... Rg5 {[%clk 0:00:12.6]} 37. g4 {[%clk
0:00:04]} 37... Nf4 {[%clk 0:00:12.9]} 38. Nxf4 {[%clk 0:00:03.7]} 38... exf4
{[%clk 0:00:13.8]} 39. Nf3 {[%clk 0:00:04.2]} 39... R5g7 {[%clk 0:00:13.2]} 40.
e5 {[%clk 0:00:04.7]} 40... h5 {[%clk 0:00:11.6]} 41. g5 {[%clk 0:00:04.9]}
41... Bxh3 {[%clk 0:00:09.7]} 42. exd6 {[%clk 0:00:05.6]} 42... Bg4 {[%clk
0:00:10]} 43. Ne5 {[%clk 0:00:05.6]} 43... Rxg5 {[%clk 0:00:10.2]} 44. Nxf7
{[%clk 0:00:05.5]} 44... Rxd5 {[%clk 0:00:09.4]} 45. Be4 {[%clk 0:00:05]} 45...
Rd2 {[%clk 0:00:09.1]} 46. Nh6 {[%clk 0:00:04.5]} 46... Re8 {[%clk 0:00:06.7]}
47. Bg6 {[%clk 0:00:04]} 47... Rd8 {[%clk 0:00:06.1]} 48. Be4 {[%clk 0:00:03.9]}
48... R8xd6 {[%clk 0:00:05.2]} 49. Nxg4 {[%clk 0:00:04.2]} 49... hxg4 {[%clk
0:00:05.6]} 50. Rxg4 {[%clk 0:00:04.3]} 50... Rh6+ {[%clk 0:00:05.8]} 51. Kg1
{[%clk 0:00:04.3]} 51... Rd1+ {[%clk 0:00:05.2]} 52. Kg2 {[%clk 0:00:04.8]}
52... Rd2+ {[%clk 0:00:05.9]} 53. Kg1 {[%clk 0:00:04.7]} 53... Rf2 {[%clk
0:00:05.5]} 54. Rg8+ {[%clk 0:00:04.8]} 54... Ka7 {[%clk 0:00:05.6]} 55. Rg7
{[%clk 0:00:05.3]} 55... Rb6 {[%clk 0:00:06.2]} 56. Re7 {[%clk 0:00:03.4]} 56...
Rbb2 {[%clk 0:00:06.2]} 57. Re6 {[%clk 0:00:02.9]} 57... Rfd2 {[%clk 0:00:05.5]}
58. Kf1 {[%clk 0:00:02.4]} 58... Rd1# {[%clk 0:00:05.9]} 0-1

[Event "Early-Titled-Tuesday-Blitz-January-30-2024"]
[Site "Chess.com"]
[Date "2024.01.30"]
[Round "6"]
[White "Seochesspie"]
[Black "Bilan_Danila"]
[Result "1-0"]
[WhiteElo "2868"]
[BlackElo "2622"]
[TimeControl "180+1"]
[EndTime "9:09:43 PST"]
[Termination "Seochesspie won by resignation"]

1. e4 {[%clk 0:03:00.9]} 1... c5 {[%clk 0:03:00]} 2. Nf3 {[%clk 0:03:00.9]} 2...
e6 {[%clk 0:03:00.4]} 3. d4 {[%clk 0:03:00]} 3... cxd4 {[%clk 0:03:01.3]} 4.
Nxd4 {[%clk 0:03:00.6]} 4... a6 {[%clk 0:03:01.9]} 5. g3 {[%clk 0:02:58.6]} 5...
Qc7 {[%clk 0:03:01.9]} 6. Bg2 {[%clk 0:02:58.7]} 6... b6 {[%clk 0:03:01.7]} 7.
O-O {[%clk 0:02:58.6]} 7... Bb7 {[%clk 0:03:02.4]} 8. Qe2 {[%clk 0:02:57.7]}
8... d6 {[%clk 0:03:03]} 9. c4 {[%clk 0:02:57.6]} 9... Nf6 {[%clk 0:03:03.4]}
10. Nc3 {[%clk 0:02:57.7]} 10... Be7 {[%clk 0:03:03.9]} 11. Be3 {[%clk
0:02:54.9]} 11... Nbd7 {[%clk 0:03:04.1]} 12. Rac1 {[%clk 0:02:55]} 12... O-O
{[%clk 0:03:04.1]} 13. b3 {[%clk 0:02:55.4]} 13... Rac8 {[%clk 0:03:04.2]} 14.
g4 {[%clk 0:02:51.7]} 14... Nc5 {[%clk 0:02:40.3]} 15. Bd2 {[%clk 0:02:45.1]}
15... Rfd8 {[%clk 0:02:26.8]} 16. g5 {[%clk 0:02:44.9]} 16... Ne8 {[%clk
0:02:26.2]} 17. f4 {[%clk 0:02:42.4]} 17... Qb8 {[%clk 0:02:26]} 18. f5 {[%clk
0:02:32.8]} 18... exf5 {[%clk 0:02:17]} 19. exf5 {[%clk 0:02:18]} 19... Bf8
{[%clk 0:02:16.2]} 20. Bxb7 {[%clk 0:02:16.7]} 20... Qxb7 {[%clk 0:02:15.3]} 21.
Rce1 {[%clk 0:02:12.1]} 21... Nc7 {[%clk 0:02:14.4]} 22. g6 {[%clk 0:02:09.5]}
22... d5 {[%clk 0:01:37.8]} 23. gxf7+ {[%clk 0:02:06.8]} 23... Kxf7 {[%clk
0:01:38]} 24. Ne6 {[%clk 0:01:42.1]} 24... Re8 {[%clk 0:01:28.4]} 25. b4 {[%clk
0:01:39.6]} 25... N5xe6 {[%clk 0:01:18.6]} 26. fxe6+ {[%clk 0:01:39.6]} 26...
Kg8 {[%clk 0:01:19.1]} 27. Rf7 {[%clk 0:01:37.4]} 27... Qc6 {[%clk 0:01:07.1]}
28. Rxc7 {[%clk 0:01:31.4]} 28... Qxc7 {[%clk 0:01:00.5]} 29. cxd5 {[%clk
0:01:16.4]} 29... Bxb4 {[%clk 0:00:56.3]} 30. Ne4 {[%clk 0:01:15.5]} 30... Bc5+
{[%clk 0:00:48.1]} 31. Kg2 {[%clk 0:01:09.1]} 31... Rcd8 {[%clk 0:00:36.2]} 32.
Qf3 {[%clk 0:01:01.9]} 32... Kh8 {[%clk 0:00:24.2]} 33. Ng5 {[%clk 0:00:59.2]}
33... Rf8 {[%clk 0:00:17.3]} 34. Nf7+ {[%clk 0:00:47.9]} 34... Kg8 {[%clk
0:00:17]} 35. Bf4 {[%clk 0:00:44.8]} 35... Rxf7 {[%clk 0:00:08.2]} 36. Bxc7
{[%clk 0:00:40.2]} 36... Rxf3 {[%clk 0:00:07.6]} 37. Kxf3 {[%clk 0:00:24.8]}
37... Rxd5 {[%clk 0:00:07.5]} 38. e7 {[%clk 0:00:25.1]} 38... Bxe7 {[%clk
0:00:04.2]} 39. Rxe7 {[%clk 0:00:26]} 39... Rd2 {[%clk 0:00:04.6]} 40. h4 {[%clk
0:00:18.3]} 40... Rxa2 {[%clk 0:00:04.2]} 41. Bxb6 {[%clk 0:00:18.5]} 41... Ra3+
{[%clk 0:00:04.7]} 42. Be3 {[%clk 0:00:17.8]} 42... a5 {[%clk 0:00:04.1]} 43. h5
{[%clk 0:00:17.8]} 43... a4 {[%clk 0:00:03.7]} 44. Ke4 {[%clk 0:00:17.6]} 44...
Kf8 {[%clk 0:00:03.8]} 45. Ra7 {[%clk 0:00:16.5]} 45... Ra1 {[%clk 0:00:03.7]}
46. Bc5+ {[%clk 0:00:14.1]} 46... Kg8 {[%clk 0:00:03.3]} 47. Bd4 {[%clk
0:00:14.3]} 47... Re1+ {[%clk 0:00:04.1]} 48. Kd5 {[%clk 0:00:14.2]} 48... g6
{[%clk 0:00:05]} 49. h6 {[%clk 0:00:11.5]} 49... Rh1 {[%clk 0:00:04.8]} 50. Rg7+
{[%clk 0:00:11]} 50... Kf8 {[%clk 0:00:05]} 51. Rxh7 {[%clk 0:00:11.2]} 51... a3
{[%clk 0:00:05.9]} 52. Bg7+ {[%clk 0:00:07.8]} 52... Kf7 {[%clk 0:00:05.8]} 53.
Rh8 {[%clk 0:00:06.4]} 53... a2 {[%clk 0:00:05.4]} 54. Ra8 {[%clk 0:00:06.7]}
54... Rd1+ {[%clk 0:00:05]} 55. Ke4 {[%clk 0:00:06.3]} 55... Rd2 {[%clk
0:00:05.1]} 56. Ke3 {[%clk 0:00:05.9]} 56... Rh2 {[%clk 0:00:05.3]} 57. Kf3
{[%clk 0:00:05.5]} 57... g5 {[%clk 0:00:05.9]} 58. Kg3 {[%clk 0:00:05.6]} 58...
Rxh6 {[%clk 0:00:03.1]} 59. Bxh6 {[%clk 0:00:05.3]} 59... Kg6 {[%clk 0:00:04]}
60. Bxg5 {[%clk 0:00:05.2]} 60... Kxg5 {[%clk 0:00:04.4]} 61. Rxa2 {[%clk
0:00:04.9]} 1-0